bitfinex-derivatives/quotes_ETHF0:USTF0_20240915
["timestamp","ask_amount","ask_price","bid_price","bid_amount"]
[1726386379915,5.91358155,2423.3,2423.1,2.11906433]
[1726386380116,5.91358155,2423.3,2423.1,1.65452637]
[1726386380509,5.91358155,2423.3,2423.1,1.19]
[1726386381224,5.91358155,2423.3,2423.2,0.49324254]
[1726386381520,3.2078,2423.3,2423.1,1.19]
[1726386381733,2.70569309,2423.2,2423.1,1.19]
[1726386381917,2.70569309,2423.2,2423.1,2.14781725]
[1726386382515,2.70569309,2423.2,2423.1,1.68326081]
[1726386382717,2.70569309,2423.2,2423.1,2.14781683]
[1726386384221,3.2078,2423.3,2423.1,2.89109882]
[1726386384413,3.2078,2423.3,2423.2,0.95781683]
[1726386385438,4.07037786,2423.4,2423.2,0.95781683]
[1726386385630,4.07037786,2423.4,2423.3,0.95781683]
[1726386386021,8.19677786,2423.4,2423.1,1.19]
[1726386386327,4.07037786,2423.4,2423.3,0.46455338]
[1726386386627,4.07037786,2423.4,2423.3,0.95781276]
[1726386386844,7.27817786,2423.4,2423.3,0.95781276]
[1726386387223,4.07037786,2423.4,2423.3,0.95781276]
[1726386387423,11.40457786,2423.4,2423.3,0.95781276]
[1726386388828,14.10114523,2423.4,2423.3,0.49325938]
[1726386389031,9.97474523,2423.4,2423.3,0.49325938]
[1726386389430,7.27817786,2423.4,2423.3,0.9578115]
[1726386389933,7.27817786,2423.4,2423.3,0.46455212]
[1726386390224,9.97470489,2423.4,2423.3,0.9578041]
[1726386390431,9.97474779,2423.4,2423.3,0.9578124]
[1726386390625,9.97474779,2423.4,2423.3,0.49325467]
[1726386391231,6.76694779,2423.4,2423.3,0.49325467]
[1726386391432,7.27817786,2423.4,2423.3,0.95780974]
[1726386391820,4.07037786,2423.4,2423.3,0.95780974]
[1726386392540,9.97475635,2423.4,2423.3,0.49325467]
[1726386393045,9.97475635,2423.4,2423.3,0.49326739]
[1726386393427,6.76695635,2423.4,2423.3,0.49326739]
[1726386393738,9.97475635,2423.4,2423.3,0.49327178]
[1726386394033,9.97475635,2423.4,2423.3,0.49326966]
[1726386394541,7.27817786,2423.4,2423.3,0.95781653]
[1726386396527,7.27817786,2423.4,2423.3,0.95781599]
[1726386397330,0.8518,2423.5,2423.3,0.95781599]
[1726386397331,3.34293786,2423.5,2423.4,0.41254]
[1726386397530,2.80311437,2423.5,2423.4,3.30338923]
[1726386397725,2.80311437,2423.5,2423.4,4.38555541]
[1726386397726,2.80319527,2423.5,2423.4,4.38555541]
[1726386397931,2.80319527,2423.5,2423.4,4.86287748]
[1726386398131,2.80319527,2423.5,2423.4,8.51195541]
[1726386398741,2.26082715,2423.5,2423.4,8.51195541]
[1726386399632,2.26082715,2423.5,2423.4,7.42978923]
[1726386399839,2.26082715,2423.5,2423.4,6.68675599]
[1726386400136,2.26082715,2423.5,2423.4,6.93648656]
[1726386400332,2.26082715,2423.5,2423.4,6.68653326]
[1726386400729,2.26082715,2423.5,2423.4,5.72894]
[1726386400936,2.26082715,2423.5,2423.4,6.68635276]
[1726386402928,2.26082715,2423.5,2423.4,2.55995276]
[1726386403831,2.26082715,2423.5,2423.4,2.09559146]
[1726386404029,2.26082715,2423.5,2423.4,2.55996819]
[1726386407141,2.26082715,2423.5,2423.4,2.55998489]
[1726386407349,2.26082715,2423.5,2423.4,3.05306914]
[1726386407837,0.096,2423.5,2423.4,3.05306914]
[1726386408245,0.096,2423.5,2423.4,2.56000101]
[1726386408437,0.096,2423.5,2423.4,3.05305875]
[1726386408635,0.096,2423.5,2423.4,20.93924577]
[1726386408838,1.17719084,2423.5,2423.4,24.45890569]
[1726386409035,0.096,2423.5,2423.4,24.99995161]
[1726386409442,0.096,2423.5,2423.4,24.45673784]
[1726386409943,0.096,2423.5,2423.4,24.45675813]
[1726386410137,0.096,2423.5,2423.4,23.9795469]
[1726386410742,0.096,2423.5,2423.4,23.97939396]
[1726386411146,0.096,2423.5,2423.4,22.74340034]
[1726386411334,0.096,2423.5,2423.4,22.27900749]
[1726386411540,0.096,2423.5,2423.4,22.26871487]
[1726386411840,0.096,2423.5,2423.4,22.73296956]
[1726386412238,0.096,2423.5,2423.4,23.47577707]
[1726386413236,0.096,2423.5,2423.4,22.73296956]
[1726386413655,0.096,2423.5,2423.4,21.65295094]
[1726386415643,0.096,2423.5,2423.4,22.73296956]
[1726386416841,0.096,2423.5,2423.4,12.60655896]
[1726386417445,0.096,2423.5,2423.4,11.64940861]
[1726386417751,0.096,2423.5,2423.4,11.06228251]
[1726386418155,0.096,2423.5,2423.4,11.52652661]
[1726386418651,0.096,2423.5,2423.4,11.99077042]
[1726386420047,0.096,2423.5,2423.4,17.99077042]
[1726386421043,0.096,2423.5,2423.4,11.99079532]
[1726386421348,0.096,2423.5,2423.4,9.82659573]
[1726386421556,0.096,2423.5,2423.4,10.31952523]
[1726386423146,0.096,2423.5,2423.4,10.31954784]
[1726386423457,0.096,2423.5,2423.4,10.31955757]
[1726386423854,0.096,2423.5,2423.4,9.36232702]
[1726386424049,0.096,2423.5,2423.4,10.31953997]
[1726386424241,0.096,2423.5,2423.4,9.90699997]
[1726386424555,0.096,2423.5,2423.4,5.74198702]
[1726386424749,0.096,2423.5,2423.4,1.19]
[1726386424941,1.17719084,2423.5,2423.4,1.19]
[1726386426144,1.17719084,2423.5,2423.2,0.7838]
[1726386426355,1.08119084,2423.3,2423.2,1.19]
[1726386426851,1.46449084,2423.3,2423.2,5.67940907]
[1726386432559,0.3833,2423.3,2423.2,5.67940907]
[1726386432752,1.46354901,2423.3,2423.2,5.67940907]
[1726386433155,0.3833,2423.3,2423.2,5.67940907]
[1726386433359,2.00508627,2423.3,2423.2,5.67940907]
[1726386434364,1.46361409,2423.3,2423.2,5.67940907]
[1726386434658,0.3833,2423.3,2423.2,5.67940907]
[1726386435356,2.00508627,2423.3,2423.2,5.67940907]
[1726386436560,2.00508627,2423.3,2423.2,6.06680907]
[1726386437365,1.62178627,2423.3,2423.2,6.47937907]
[1726386437560,1.08057595,2423.3,2423.2,6.47937907]
[1726386437753,1.08057595,2423.3,2423.2,6.97252199]
[1726386437969,1.08057595,2423.3,2423.2,7.43697776]
[1726386438153,1.08057595,2423.3,2423.2,7.9014317]
[1726386438355,1.08057595,2423.3,2423.2,8.36589721]
[1726386438560,5.62248627,2423.4,2423.2,7.90144327]
[1726386438561,4.82958627,2423.4,2423.2,7.90144327]
[1726386438761,4.82958627,2423.4,2423.2,6.9438327]
[1726386439273,1.08068324,2423.3,2423.2,6.9438327]
[1726386439454,1.08068324,2423.3,2423.2,7.90143372]
[1726386439660,1.08076149,2423.3,2423.2,7.90143372]
[1726386440865,1.08076149,2423.3,2423.2,8.71773372]
[1726386441460,1.62178627,2423.3,2423.2,8.25328009]
[1726386445967,1.62178627,2423.3,2423.2,7.76013554]
[1726386446160,1.62178627,2423.3,2423.2,8.25326899]
[1726386446363,1.62178627,2423.3,2423.2,8.25326186]
[1726386446662,1.62178627,2423.3,2423.2,8.7177096]
[1726386448571,4.82958627,2423.4,2423.3,0.41255]
[1726386448871,3.2078,2423.4,2423.3,1.37013274]
[1726386449071,4.8293326,2423.4,2423.3,1.37013274]
[1726386449274,3.2078,2423.4,2423.3,1.37013274]
[1726386449572,4.82931424,2423.4,2423.3,1.37013274]
[1726386450064,4.82931424,2423.4,2423.3,0.87699774]
[1726386450270,3.2078,2423.4,2423.3,1.3701392]
[1726386450466,4.82933723,2423.4,2423.3,1.3701392]
[1726386452369,3.2078,2423.4,2423.3,0.90568825]
[1726386452571,4.82927894,2423.4,2423.3,0.90568825]
[1726386452771,4.82927894,2423.4,2423.3,1.37013388]
[1726386453867,4.82927894,2423.4,2423.3,0.87699563]
[1726386454167,4.82927894,2423.4,2423.3,0.90568178]
[1726386454168,1.62147894,2423.4,2423.3,0.90568178]
[1726386454372,4.82927894,2423.4,2423.3,0.90561704]
[1726386454570,4.82927894,2423.4,2423.3,1.37006281]
[1726386454781,4.82927894,2423.4,2423.3,2.29883027]
[1726386455074,4.82927894,2423.4,2423.3,1.34137981]
[1726386455272,4.82927894,2423.4,2423.3,2.29879706]
[1726386455273,1.62147894,2423.4,2423.3,2.29879706]
[1726386455467,4.82927894,2423.4,2423.3,2.29879706]
[1726386456074,1.62147894,2423.4,2423.3,2.29879706]
[1726386456270,4.82927894,2423.4,2423.3,2.29879706]
[1726386457275,3.2078,2423.4,2423.3,2.29879706]
[1726386457868,3.2078,2423.4,2423.3,1.83453778]
[1726386458069,3.2078,2423.4,2423.3,2.29900294]
[1726386459172,6.15972715,2423.4,2423.3,2.29900294]
[1726386460075,6.15972715,2423.4,2423.3,2.2989946]
[1726386461482,6.15972715,2423.4,2423.3,1.37016479]
[1726386461673,6.15972715,2423.4,2423.3,1.37014326]
[1726386465378,6.15972715,2423.4,2423.3,0.87700682]
[1726386465579,2.95192715,2423.4,2423.3,0.90569312]
[1726386465778,6.15972715,2423.4,2423.3,0.87700581]
[1726386465981,6.15972715,2423.4,2423.3,0.90569474]
[1726386465982,2.95192715,2423.4,2423.3,0.90569474]
[1726386466275,6.15972715,2423.4,2423.3,1.37015218]
[1726386466869,3.9949,2423.4,2423.3,1.83460899]
[1726386467277,3.9949,2423.4,2423.3,1.37015155]
[1726386467579,3.9949,2423.4,2423.3,0.95760155]
[1726386467991,3.9949,2423.4,2423.3,1.37015155]
[1726386468177,6.70209527,2423.4,2423.3,1.37015155]
[1726386468482,3.9949,2423.4,2423.3,1.37015155]
[1726386468680,6.70209527,2423.4,2423.3,1.37015155]
[1726386469178,6.70209527,2423.4,2423.3,1.37016995]
[1726386469894,3.49429527,2423.4,2423.3,1.37016995]
[1726386470275,3.49429527,2423.4,2423.3,2.1132792]
[1726386470671,6.70209527,2423.4,2423.3,2.1132792]
[1726386472384,6.70209527,2423.4,2423.3,3.19329782]
[1726386472582,6.70209527,2423.4,2423.3,3.19328297]
[1726386474086,6.70209527,2423.4,2423.3,2.11326435]
[1726386474687,6.70209527,2423.4,2423.3,3.19328297]
[1726386474884,6.70209527,2423.4,2423.3,2.11326435]
[1726386475586,3.49429527,2423.4,2423.3,2.11326435]
[1726386475781,3.49429527,2423.4,2423.3,3.19328297]
[1726386476180,3.49429527,2423.4,2423.3,3.19327924]
[1726386476383,6.70209527,2423.4,2423.3,3.19327924]
[1726386476689,6.70209527,2423.4,2423.3,3.19327933]
[1726386477286,6.70209527,2423.4,2423.3,1.62012167]
[1726386477590,6.70209527,2423.4,2423.3,2.11326612]
[1726386477787,6.70209527,2423.4,2423.3,3.19329323]
[1726386478180,10.04139527,2423.4,2423.3,2.78074323]
[1726386478380,8.5159,2423.4,2423.3,0.95759728]
[1726386480782,8.5159,2423.4,2423.3,0.957662]
[1726386481284,4.3895,2423.4,2423.3,0.957662]
[1726386482388,4.3895,2423.4,2423.3,0.95770368]
[1726386483083,1.1817,2423.4,2423.3,0.95770368]
[1726386483395,4.3895,2423.4,2423.3,0.95770368]
[1726386483794,4.3895,2423.4,2423.3,1.37025368]
[1726386484185,3.2078,2423.4,2423.3,2.56025368]
[1726386484695,3.2078,2423.4,2423.3,2.14770368]
[1726386485889,3.2078,2423.4,2423.3,1.19]
[1726386486192,3.2078,2423.4,2423.3,2.14766102]
[1726386486399,3.2078,2423.4,2423.3,1.6544841]
[1726386486587,3.2078,2423.4,2423.3,2.14766571]
[1726386486895,2.70673225,2423.4,2423.3,3.02470372]
[1726386487687,2.70673225,2423.4,2423.3,2.61215372]
[1726386489190,2.70673225,2423.4,2423.3,2.11897211]
[1726386489416,2.70673225,2423.4,2423.3,1.6544841]
[1726386489596,2.70673225,2423.4,2423.3,2.61211401]
[1726386491797,2.70673225,2423.4,2423.3,2.14762991]
[1726386495100,2.70673225,2423.4,2423.3,2.89076867]
[1726386496403,2.70673225,2423.4,2423.3,2.89074809]
[1726386496599,5.91453225,2423.4,2423.3,2.89074809]
[1726386496803,5.91453225,2423.4,2423.3,2.89070757]
[1726386497307,2.70673225,2423.4,2423.3,2.89070757]
[1726386497507,5.91453225,2423.4,2423.3,2.39756892]
[1726386497820,5.91453225,2423.4,2423.3,2.89070209]
[1726386498204,5.91453225,2423.4,2423.3,1.19]
[1726386498413,5.91453225,2423.4,2423.3,2.89072548]
[1726386499706,5.91453225,2423.4,2423.3,1.68316001]
[1726386499911,5.91453225,2423.4,2423.3,2.89078508]
[1726386500101,5.91453225,2423.4,2423.3,2.14763119]
[1726386501300,2.70673225,2423.4,2423.3,2.14763119]
[1726386501496,5.91453225,2423.4,2423.3,2.14763119]
[1726386501715,5.91453225,2423.4,2423.3,0.95763119]
[1726386502099,3.2078,2423.4,2423.3,0.95763119]
[1726386502804,3.62034,2423.4,2423.3,0.95763119]
[1726386503003,8.93674,2423.4,2423.3,0.95763119]
[1726386503198,9.73434,2423.4,2423.3,0.46447118]
[1726386503396,9.73434,2423.4,2423.3,0.49322413]
[1726386503807,9.73434,2423.4,2423.3,0.9577526]
[1726386504904,9.73434,2423.4,2423.3,0.49322413]
[1726386505520,9.73434,2423.4,2423.1,2.25299862]
[1726386505808,0.4106,2423.3,2423.2,0.9578151]
[1726386506504,6.13955,2423.3,2423.2,0.9578151]
[1726386506706,0.41257,2423.2,2423.1,1.08001862]
[1726386506908,5.72897,2423.2,2423.1,1.08001862]
[1726386508205,0.41259,2423.1,2423.0,0.096]
[1726386508413,7.74759,2423.1,2422.8,0.80594]
[1726386508604,3.62039,2423.1,2422.8,0.80594]
[1726386510206,3.62039,2423.1,2422.8,0.3933]
[1726386511307,0.3882,2423.0,2422.8,0.3933]
[1726386514919,3.2078,2422.9,2422.8,0.3933]
[1726386515615,3.2078,2422.9,2422.8,0.80594]
[1726386516011,3.2078,2422.9,2422.8,0.3933]
[1726386519216,4.82863886,2422.9,2422.8,0.3933]
[1726386520117,1.62083886,2422.9,2422.8,0.3933]
[1726386520317,4.82863886,2422.9,2422.8,0.3933]
[1726386522522,1.62083886,2422.9,2422.8,0.3933]
[1726386522717,4.82863886,2422.9,2422.8,0.3933]
[1726386523418,4.82863886,2422.9,2422.8,0.80594]
[1726386527023,1.62083886,2422.9,2422.8,0.80594]
[1726386527225,4.82863886,2422.9,2422.8,0.80594]
[1726386527733,4.82863886,2422.9,2422.8,0.3933]
[1726386528344,1.62083886,2423.0,2422.8,0.3933]
[1726386528842,1.62083886,2422.9,2422.8,0.3933]
[1726386529536,1.62083886,2422.9,2422.8,1.5833]
[1726386529537,1.08017839,2422.9,2422.8,1.5833]
[1726386529740,1.62083886,2423.0,2422.8,1.5833]
[1726386529935,1.62083886,2422.9,2422.8,1.5833]
[1726386530133,2.57387821,2423.1,2422.8,1.5833]
[1726386530134,1.62083886,2423.0,2422.8,1.5833]
[1726386530330,1.62083886,2422.9,2422.8,1.5833]
[1726386530735,1.62083886,2423.0,2422.8,1.5833]
[1726386530943,1.62083886,2422.9,2422.8,1.5833]
[1726386536239,4.82863886,2422.9,2422.8,1.99594]
[1726386537238,1.62083886,2422.9,2422.8,1.99594]
[1726386539643,1.62083886,2423.0,2422.9,0.41262]
[1726386539841,5.36907821,2423.1,2422.9,1.19]
[1726386540047,5.36907821,2423.1,2423.0,0.3966]
[1726386540444,2.16127821,2423.1,2423.0,0.3966]
[1726386540650,1.62093697,2423.1,2423.0,0.8092]
[1726386540841,1.62091579,2423.1,2423.0,0.8092]
[1726386541739,1.62091579,2423.1,2423.0,1.30261563]
[1726386541956,1.62091579,2423.1,2423.0,1.76731081]
[1726386544346,1.62091579,2423.1,2423.0,0.8092]
[1726386544546,1.62091579,2423.1,2423.0,1.76728597]
[1726386545242,2.25727821,2423.2,2423.1,0.41259]
[1726386545442,2.16127821,2423.3,2423.1,2.56068357]
[1726386545644,1.62182212,2423.2,2423.1,1.60259]
[1726386545845,1.62182212,2423.2,2423.1,2.56063177]
[1726386548475,5.46507821,2423.4,2423.2,0.41257]
[1726386548648,5.36907821,2423.4,2423.3,0.4096]
[1726386549552,5.36907821,2423.4,2423.3,0.82215]
[1726386550652,5.36907821,2423.4,2423.3,0.4096]
[1726386552155,5.36907821,2423.4,2423.3,1.22355]
[1726386553043,3.2078,2423.4,2423.3,1.22355]
[1726386554347,4.82856637,2423.4,2423.3,1.22355]
[1726386564460,5.21816637,2423.4,2423.3,1.22355]
[1726386566063,2.01036637,2423.4,2423.3,1.22355]
[1726386573660,2.01036637,2423.4,2423.3,0.811]
[1726386574771,2.01036637,2423.4,2423.3,1.22355]
[1726386575658,0.3896,2423.4,2423.3,1.22355]
[1726386578869,2.55087821,2423.4,2423.3,1.22355]
[1726386579570,2.55087821,2423.4,2423.3,0.811]
[1726386579771,2.55087821,2423.4,2423.3,1.22355]
[1726386580369,2.55087821,2423.4,2423.3,1.71687536]
[1726386581473,2.55087821,2423.4,2423.3,2.18150315]
[1726386584179,0.3896,2423.4,2423.3,2.18150315]
[1726386585183,3.09119776,2423.4,2423.3,2.18150315]
[1726386585674,3.09119776,2423.4,2423.3,1.71687536]
[1726386585875,3.09119776,2423.4,2423.3,2.18146973]
[1726386586174,3.09119776,2423.4,2423.3,2.64606337]
[1726386588079,3.09119776,2423.4,2423.3,2.181469]
[1726386588283,3.09119776,2423.4,2423.3,2.92492776]
[1726386588981,3.09119776,2423.4,2423.3,1.71690957]
[1726386589191,3.09119776,2423.4,2423.3,2.92502963]
[1726386589387,3.09119776,2423.4,2423.3,2.18157113]
[1726386589581,3.09119776,2423.4,2423.3,2.92503144]
[1726386591380,3.09119776,2423.4,2423.3,4.00505006]
[1726386591684,3.09119776,2423.4,2423.3,3.59250006]
[1726386591889,2.70159776,2423.4,2423.3,3.59250006]
[1726386592087,2.70678973,2423.4,2423.3,3.59250006]
[1726386592386,2.70678973,2423.4,2423.3,3.59250233]
[1726386593392,2.70678973,2423.4,2423.3,4.48265628]
[1726386593889,2.70678973,2423.4,2423.3,4.07010628]
[1726386596084,2.70678973,2423.4,2423.3,2.86197873]
[1726386596407,2.70678973,2423.4,2423.3,3.57673589]
[1726386596591,2.70678973,2423.4,2423.3,2.86198288]
[1726386597093,2.70678973,2423.4,2423.3,3.32664184]
[1726386597391,2.70678973,2423.4,2423.3,4.07009617]
[1726386600399,2.70678973,2423.4,2423.3,11.01973761]
[1726386600894,2.70678973,2423.4,2423.3,10.60718761]
[1726386601600,2.70678973,2423.4,2423.3,11.01973761]
[1726386601799,2.70678973,2423.4,2423.3,10.60718761]
[1726386602101,2.70678973,2423.4,2423.3,6.4807324]
[1726386602596,2.70678973,2423.4,2423.3,11.0196824]
[1726386602785,2.70678973,2423.4,2423.3,9.93966378]
[1726386602986,2.70678973,2423.4,2423.3,5.81326378]
[1726386603396,3.2078,2423.6,2423.4,0.41254]
[1726386603397,2.70678973,2423.6,2423.4,0.41254]
[1726386603600,2.70678973,2423.6,2423.5,3.99630229]
[1726386603900,2.70678973,2423.6,2423.5,4.4738774]
[1726386604199,2.70678973,2423.6,2423.5,3.58378229]
[1726386604496,2.70678973,2423.6,2423.5,2.5008687]
[1726386604688,2.70678973,2423.6,2423.5,3.58378229]
[1726386605894,2.70678973,2423.6,2423.5,2.40192]
[1726386606092,2.70678973,2423.7,2423.5,3.97814639]
[1726386606294,2.70678973,2423.7,2423.6,0.4933128]
[1726386606496,2.70678973,2423.7,2423.6,0.8804128]
[1726386606689,2.70678973,2423.7,2423.6,1.34504412]
[1726386606891,2.70678973,2423.7,2423.6,0.8804128]
[1726386607090,2.70678973,2423.7,2423.6,1.34503919]
[1726386608798,2.70678973,2423.8,2423.6,1.34503919]
[1726386608992,2.70678973,2423.8,2423.7,0.46462639]
[1726386609299,2.70678973,2423.8,2423.7,1.34072354]
[1726386609495,2.70678973,2423.8,2423.7,0.87609715]
[1726386609697,0.3755,2423.8,2423.7,0.3828]
[1726386610000,1.5655,2423.8,2423.7,0.3828]
[1726386612603,4.26989575,2423.8,2423.7,0.3828]
[1726386617597,4.68236575,2423.8,2423.7,0.3828]
[1726386618203,0.41248,2423.7,2423.5,0.4025]
[1726386618401,3.11570401,2423.7,2423.5,0.4025]
[1726386618803,2.70322401,2423.6,2423.5,0.4025]
[1726386619005,3.11570401,2423.7,2423.5,1.36046326]
[1726386619198,3.11570401,2423.7,2423.5,0.4025]
[1726386619507,2.70322401,2423.6,2423.5,0.4025]
[1726386619709,2.70322401,2423.6,2423.5,0.89582729]
[1726386620204,2.70322401,2423.6,2423.5,0.4025]
[1726386620600,2.70322401,2423.6,2423.5,0.89583146]
[1726386621008,2.70322401,2423.6,2423.5,1.36047283]
[1726386621215,2.70322401,2423.6,2423.5,1.36047227]
[1726386621509,2.70322401,2423.6,2423.5,0.89583146]
[1726386622505,2.70322401,2423.6,2423.5,0.89582895]
[1726386622704,2.70322401,2423.6,2423.5,0.4025]
[1726386622906,2.70322401,2423.6,2423.5,0.89583132]
[1726386623395,2.70322401,2423.6,2423.5,1.36047163]
[1726386623599,2.70322401,2423.6,2423.5,0.89583132]
[1726386624203,2.70322401,2423.6,2423.5,1.36047243]
[1726386624514,2.70322401,2423.6,2423.5,0.89583403]
[1726386624705,2.70322401,2423.6,2423.5,1.36047584]
[1726386626298,2.70322401,2423.6,2423.5,0.86714181]
[1726386626611,2.70322401,2423.6,2423.5,0.89583169]
[1726386627111,2.70322401,2423.6,2423.5,1.36047498]
[1726386627310,2.70322401,2423.6,2423.5,1.82511827]
[1726386627511,2.70322401,2423.6,2423.5,1.36047498]
[1726386628007,2.70322401,2423.6,2423.5,1.36047615]
[1726386629206,2.70322401,2423.6,2423.5,1.36047643]
[1726386629412,2.70322401,2423.6,2423.5,0.89583314]
[1726386629708,2.70322401,2423.6,2423.5,1.36047774]
[1726386630811,2.70322401,2423.6,2423.5,1.36047615]
[1726386631007,2.70322401,2423.6,2423.5,1.36047469]
[1726386632713,3.09062401,2423.6,2423.5,1.36047469]
[1726386634218,3.09062401,2423.6,2423.5,0.89583155]
[1726386634520,3.09062401,2423.6,2423.5,1.36047576]
[1726386635105,2.70322401,2423.6,2423.5,1.36047576]
[1726386637624,2.70322401,2423.6,2423.5,0.86714421]
[1726386637917,2.70322401,2423.6,2423.5,0.4025]
[1726386638123,2.70322401,2423.6,2423.5,0.89583113]
[1726386638309,2.70322401,2423.6,2423.5,1.82511785]
[1726386638908,2.70322401,2423.6,2423.5,2.23763785]
[1726386639205,5.91102401,2423.7,2423.5,1.77299458]
[1726386639531,5.91102401,2423.7,2423.6,0.95797458]
[1726386639715,5.91102401,2423.7,2423.6,1.33217458]
[1726386640725,2.70322401,2423.7,2423.6,1.33217458]
[1726386641018,5.91102401,2423.7,2423.6,0.86752587]
[1726386641207,2.70322401,2423.7,2423.6,1.33216468]
[1726386641409,5.91102401,2423.7,2423.6,1.33216468]
[1726386642121,2.70322401,2423.7,2423.6,1.33216468]
[1726386642321,5.91102401,2423.7,2423.6,1.33216468]
[1726386642913,2.70425037,2423.7,2423.6,1.33216468]
[1726386643319,0.41248,2423.8,2423.6,1.33216468]
[1726386643526,3.2078,2423.7,2423.6,0.3742]
[1726386643715,3.2078,2423.7,2423.6,1.33216428]
[1726386644411,3.2078,2423.7,2423.6,0.83883915]
[1726386644611,3.2078,2423.7,2423.6,1.3321643]
[1726386644817,3.2078,2423.7,2423.6,0.86752515]
[1726386645014,3.2078,2423.7,2423.6,1.33216432]
[1726386648124,3.2078,2423.7,2423.6,0.83883917]
[1726386648329,3.2078,2423.7,2423.6,1.33216208]
[1726386650027,0.41248,2423.8,2423.6,1.33216208]
[1726386650222,0.41248,2423.8,2423.6,0.3742]
[1726386650627,3.2078,2423.7,2423.6,0.3742]
[1726386650826,3.2078,2423.7,2423.6,1.33216022]
[1726386651226,0.41248,2423.8,2423.6,1.33216022]
[1726386651424,0.41248,2423.8,2423.6,0.3742]
[1726386651822,3.2078,2423.7,2423.6,0.3742]
[1726386652022,3.2078,2423.7,2423.6,1.33216008]
[1726386652220,0.41248,2423.8,2423.6,1.33216008]
[1726386652527,3.2078,2423.7,2423.6,0.3742]
[1726386652735,3.2078,2423.7,2423.6,1.3321601]
[1726386654230,0.80528,2423.8,2423.6,1.3321601]
[1726386654533,0.80528,2423.8,2423.6,0.3742]
[1726386654731,3.2078,2423.7,2423.6,0.3742]
[1726386654933,3.2078,2423.7,2423.6,1.33215878]
[1726386655430,3.2078,2423.7,2423.6,1.33215457]
[1726386656625,3.2078,2423.7,2423.6,0.83883271]
[1726386656835,3.2078,2423.7,2423.6,1.33214505]
[1726386658223,0.80528,2423.8,2423.6,1.33214505]
[1726386658428,0.80528,2423.8,2423.6,1.33214379]
[1726386658628,0.80528,2423.8,2423.7,0.49331108]
[1726386658833,0.80528,2423.8,2423.7,0.95794379]
[1726386659232,0.80528,2423.8,2423.7,0.95794046]
[1726386659637,0.80528,2423.8,2423.7,0.95793947]
[1726386659835,0.80528,2423.8,2423.7,0.49331009]
[1726386660033,0.80528,2423.8,2423.7,0.9579392]
[1726386661739,0.80528,2423.8,2423.6,0.3742]
[1726386662032,0.80528,2423.8,2423.7,0.95792898]
[1726386663834,0.3928,2423.8,2423.7,0.95792898]
[1726386665331,0.3928,2423.8,2423.6,0.7867]
[1726386665736,0.3928,2423.8,2423.7,0.49330033]
[1726386666042,0.3928,2423.8,2423.7,0.95792328]
[1726386668742,0.3928,2423.8,2423.7,0.46462295]
[1726386668945,0.3928,2423.8,2423.6,0.3742]
[1726386669137,2.7054592,2423.7,2423.6,0.3742]
[1726386669338,2.7054592,2423.7,2423.6,0.86749709]
[1726386669645,2.70545024,2423.7,2423.6,0.86749709]
[1726386669844,2.70545024,2423.7,2423.6,1.33211751]
[1726386670344,0.3928,2423.8,2423.6,1.33211751]
[1726386670555,0.3928,2423.8,2423.7,0.95791751]
[1726386672345,0.3928,2423.8,2423.7,0.49330189]
[1726386672547,0.3928,2423.8,2423.7,0.9579258]
[1726386675449,0.3928,2423.8,2423.7,0.46462391]
[1726386675642,0.3928,2423.8,2423.6,0.7867]
[1726386675954,0.3928,2423.8,2423.7,0.95792498]
[1726386678956,0.3928,2423.8,2423.7,0.46462363]
[1726386679154,0.3928,2423.8,2423.6,0.3742]
[1726386679659,0.3928,2423.8,2423.7,0.95792303]
[1726386679849,0.3928,2423.8,2423.7,0.88300025]
[1726386680255,0.3928,2423.8,2423.7,1.34762303]
[1726386682349,0.80527,2423.8,2423.7,1.34762303]
[1726386682549,0.41247,2423.8,2423.7,0.3897]
[1726386682950,0.41247,2423.8,2423.7,0.88300017]
[1726386683146,0.41247,2423.8,2423.7,1.81224356]
[1726386683362,6.55073786,2423.9,2423.7,1.81224356]
[1726386683363,6.96319786,2423.9,2423.7,1.81224356]
[1726386683553,6.86719786,2423.9,2423.7,0.85432293]
[1726386683865,6.86719786,2423.9,2423.8,0.3827]
[1726386684359,6.86719786,2423.9,2423.8,0.87599522]
[1726386685157,9.56181976,2423.9,2423.8,0.3827]
[1726386689160,9.56181976,2423.9,2423.8,0.87599857]
[1726386689467,9.56181976,2423.9,2423.8,0.3827]
[1726386689655,6.35401976,2423.9,2423.8,0.3827]
[1726386689858,9.56181976,2423.9,2423.8,0.3827]
[1726386690661,9.56181976,2423.9,2423.8,0.87599829]
[1726386690966,9.56181976,2423.9,2423.8,0.3827]
[1726386691166,9.56181976,2423.9,2423.8,0.87599873]
[1726386691359,9.56181976,2423.9,2423.8,0.3827]
[1726386691560,6.35401976,2423.9,2423.8,0.87599849]
[1726386691864,9.56181976,2423.9,2423.8,0.87599849]
[1726386692462,6.35401976,2423.9,2423.8,0.87599849]
[1726386692857,9.56181976,2423.9,2423.8,0.87599849]
[1726386694867,9.56181976,2423.9,2423.8,1.27079849]
[1726386696168,6.35401976,2423.9,2423.8,1.27079849]
[1726386696368,9.56181976,2423.9,2423.8,1.27079849]
[1726386696564,9.56181976,2423.9,2423.8,1.73541956]
[1726386696770,9.56181976,2423.9,2423.8,1.27079849]
[1726386697172,9.56181976,2423.9,2423.8,0.7775]
[1726386697364,9.56181976,2423.9,2423.8,1.27079806]
[1726386697667,9.56181976,2423.9,2423.8,1.7354193]
[1726386698865,9.56181976,2423.9,2423.8,0.7775]
[1726386700468,6.3148819,2423.9,2423.8,0.7775]
[1726386702162,7.5048819,2423.9,2423.8,0.7775]
[1726386702371,11.29297607,2423.9,2423.8,0.7775]
[1726386703178,8.08517607,2423.9,2423.8,0.7775]
[1726386703370,7.5048819,2423.9,2423.8,0.7775]
[1726386703576,11.29297607,2423.9,2423.8,0.7775]
[1726386703773,21.00611607,2423.9,2423.5,0.096]
[1726386704074,9.62965417,2423.6,2423.5,0.096]
[1726386704273,9.62965417,2423.6,2423.3,0.096]
[1726386704274,0.41254,2423.4,2423.3,0.096]
[1726386704470,4.2971619,2423.4,2423.3,0.096]
[1726386704666,8.4235619,2423.4,2423.3,0.096]
[1726386704876,9.2249619,2423.4,2423.3,0.096]
[1726386705378,9.7762185,2423.4,2423.3,0.096]
[1726386705779,1.60254,2423.4,2423.3,0.096]
[1726386710687,4.81034,2423.4,2423.3,0.096]
[1726386713185,1.60254,2423.4,2423.3,0.096]
[1726386713388,7.50956504,2423.4,2423.3,0.096]
[1726386715285,7.509047,2423.4,2423.3,0.096]
[1726386716290,4.301247,2423.4,2423.3,0.096]